Cogmind - Beta 14 @@@ ROGUE MODE // 2024.11.29 @ 08:39:41 Player: human Result: Destroyed by H-71 Marshal with Heavy Mass Driver Performance ------------- Evolutions (6) 3000 Regions Visited (19) 3800 Robots Destroyed (64) 320 Value Destroyed (2977) 2977 Prototype IDs (30) 600 Alien Tech Used (0) 0 Bonus (1797) 1797 TOTAL SCORE: 12494 Bonus ------- High Alert Combat Kills 80 Follower Combat Kills 1130 Aligned with FarCom 300 Met Imprinter 300 Friendly Fire -13 Cogmind --------- Core Integrity 0/1150 Matter 116/300 Energy 97/100 System Corruption 7% Temperature Cool (6) Movement Flying (37) Location -4/Hub_04(d) Parts ------- > --- POWER (2) -------- (None) > --- PROPULSION (7) --- VTOL Module Field Propulsion Drive > --- UTILITY (6) ------ Advanced Heat Sink Targeting Computer Improved Targeting Computer Advanced Targeting Computer Improved Hacking Suite > --- WEAPON (4) ------- (None) > --- INVENTORY (5) ---- Medium Treads Advanced Weight Redist. System Wave Gun Heavy Gauss Cannon Heavy Hammer Peak State ------------ > --- POWER ------------ Particle Reactor > --- PROPULSION ------- Medium Treads Medium Treads Centrium Heavy Treads Myomer Leg Myomer Leg Myomer Leg > --- UTILITY ---------- Advanced Heat Sink Targeting Computer Improved Targeting Computer Improved Targeting Computer Centrium Medium Armor Plating Improved Hacking Suite > --- WEAPON ----------- Advanced Variable Charge Gun Railgun Advanced KE Penetrator Heavy Gauss Cannon > --- INVENTORY -------- VTOL Module Improved VTOL Module Field Propulsion Drive Advanced Weight Redist. System [Rating: 110] Favorites ----------- Power Micro Nuclear Core Engine Improved Deuterium Engine Power Core Micro Nuclear Core Reactor Light Antimatter Reactor Propulsion VTOL Module Treads Centrium Heavy Treads Leg Myomer Leg Wheel Wheel Flight Unit VTOL Module Utility Small Storage Unit Device Advanced Heat Sink Storage Small Storage Unit Processor Improved Targeting Computer Hackware Improved Hacking Suite Protection Centrium Medium Armor Plating Weapon Wave Gun Energy Gun Wave Gun Energy Cannon Heavy Disruptor Cannon Ballistic Gun Advanced KE Penetrator Ballistic Cannon Heavy Gauss Cannon Launcher Grenade Launcher Special Weapon Plasma Flamer Impact Weapon Powered Hammer Special Melee Weapon Improved Datajack Build | -11 -10 -10 -10 -9 -8 -7 -6 -6 -6 -6 -5 -5 -5 -5 -4 -4 -4 -4 -4 ------- Run | Yrd Mat Min Exi Min Mat Fac Fac Low Low Zio Pro Fac Upp Upp Fac Ext Cet Arc Hub Slots Evolved 12 | . . . . . 4 2 2 . . . . 2 . . 2 . . . . Power 1 | . . . . . . . . . . . . 1 . . . . . . . Propulsion 5 | . . . . . 3 . 1 . . . . 1 . . . . . . . Utility 4 | . . . . . 1 1 1 . . . . . . . 1 . . . . Weapon 2 | . . . . . . 1 . . . . . . . . 1 . . . . Parts Attached 143 | 6 1 7 5 . 9 7 3 3 6 3 5 10 2 1 2 41 9 6 17 Power 21 | 1 . . . . 1 1 2 . . 1 . 2 . . . 8 2 1 2 Engine 9 | 1 . . . . 1 . 1 . . 1 . 1 . . . 4 . . . Core 8 | . . . . . . 1 1 . . . . 1 . . . 3 . . 2 Reactor 4 | . . . . . . . . . . . . . . . . 1 2 1 . Propulsion 57 | 2 . 3 4 . 6 2 1 1 2 2 3 3 . 1 . 16 1 2 8 Treads 4 | . . . . . . . . . . . . . . . . . 1 2 1 Leg 21 | . . . 2 . 3 . . . 2 . . . . . . 10 . . 4 Wheel 6 | 2 . . . . . . . . . . . . . . . 4 . . . Hover . | . . . . . . . . . . . . . . . . . . . . Flight 26 | . . 3 2 . 3 2 1 1 . 2 3 3 . 1 . 2 . . 3 Utility 25 | 1 1 1 . . 1 3 . . 1 . . 1 1 . 1 6 3 2 3 Device 7 | . . . . . . . . . . . . . 1 . . 2 1 1 2 Storage 3 | 1 1 1 . . . . . . . . . . . . . . . . . Processor 8 | . . . . . . 3 . . 1 . . . . . . 3 . . 1 Hackware 4 | . . . . . 1 . . . . . . 1 . . 1 . 1 . . Protection 3 | . . . . . . . . . . . . . . . . 1 1 1 . Artifact . | . . . . . . . . . . . . . . . . . . . . Weapon 40 | 2 . 3 1 . 1 1 . 2 3 . 2 4 1 . 1 11 3 1 4 Energy Gun 10 | . . . . . . . . . 1 . . 1 . . . 4 2 . 2 Energy Cannon 2 | . . . . . . . . . . . . . . . . 2 . . . Ballistic Gun 12 | 2 . 3 . . . 1 . . . . 1 1 . . . 2 1 1 . Ballistic Cannon 1 | . . . . . . . . . . . . . . . . . . . 1 Launcher 4 | . . . . . 1 . . 1 . . 1 . 1 . . . . . . Special Weapon 2 | . . . . . . . . . 1 . . 1 . . . . . . . Impact Weapon 4 | . . . . . . . . . . . . 1 . . 1 1 . . 1 Slashing Weapon . | . . . . . . . . . . . . . . . . . . . . Piercing Weapon . | . . . . . . . . . . . . . . . . . . . . Special Melee Weapon 5 | . . . 1 . . . . 1 1 . . . . . . 2 . . . Unidentified Prototypes 7 | . . . . . 1 . 1 . . . . . . . . . 4 . 1 Parts Lost 73 | . . 3 . . 1 1 . 1 . . 4 6 . . . 35 5 4 13 Power 15 | . . 1 . . . . . . . . . 1 . . . 7 1 2 3 Propulsion 34 | . . 1 . . 1 1 . 1 . . 3 3 . . . 17 3 . 4 Utility 8 | . . . . . . . . . . . . . . . . 6 . 1 1 Weapon 16 | . . 1 . . . . . . . . 1 2 . . . 5 1 1 5 Highest Loss Streak 15 | . . 2 . . 1 1 . 1 . . 3 6 . . . 11 15 2 5 To Critical Strikes 2 | . . . . . . . . . . . . . . . . . 2 . . Average Slot Usage (%) 74 | . 85 52 55 57 58 77 80 79 92 100 94 82 76 76 80 74 60 67 79 Engine 2 | . 14 1 . . 4 . . . . 6 6 3 5 5 5 3 . . . Core 2 | . . . . . . 6 6 6 6 . . 5 5 5 5 5 . . 4 Reactor 1 | . . . . . . . . . . . . . . . . . 9 5 3 Treads 2 | . . . . . . . . . . . . . . . . . 4 10 11 Leg 3 | . . . 15 . 8 . . . 8 . . . . . . 5 1 . 10 Wheel 2 | . 28 7 . . . . . . . . . . . . . 8 . . . Flight 17 | . . 18 12 28 26 37 40 39 31 40 39 35 29 29 31 11 . . . Device 1 | . . . . . . . . . . . . . 4 5 5 4 . 2 5 Storage 5 | . 14 14 14 14 9 7 6 6 6 6 6 5 5 5 5 4 . . . Processor 11 | . . . . . . 9 13 13 17 20 20 12 11 11 10 9 15 15 18 Hackware 5 | . . . . . 1 7 6 6 6 6 6 9 5 5 9 7 8 7 5 Protection 1 | . . . . . . . . . . . . . . . . 1 4 5 1 Energy Gun 3 | . . . . . . . . . 3 6 1 . . . . 4 5 10 6 Ballistic Gun 3 | . 28 10 . . . 3 6 . . . 4 2 . . . . 4 6 6 Special Melee Weapon 3 | . . . 12 14 8 . . 4 4 6 2 . . . . 2 5 1 . Peak Build Rating 110 | 6 6 6 6 7 17 47 52 53 55 55 60 74 73 58 67 85 82 88 110 Average Rating 52 | 2 6 3 4 6 12 33 51 38 48 54 57 59 56 56 63 57 71 80 90 On Entrance 40 | . 6 6 3 6 6 17 47 52 36 55 54 59 73 56 58 67 42 82 88 Naked Turns . | . . . . . . . . . . . . . . . . . . . . Heaviest Build 63 | 14 19 19 6 6 11 21 25 21 20 24 28 35 33 28 31 63 56 56 55 Greatest Support 155 | 26 26 26 20 8 17 24 29 25 32 25 33 38 35 39 37 155 89 136 136 Greatest Overweight (x) 3 | 3 . 1 . . . . . . . . . . . . . 3 . . . Average Overweight (x) . | 1 . . . . . . . . . . . . . . . . . . . Largest Inventory Capacity 10 | 8 10 10 8 8 8 8 8 8 8 8 8 8 8 8 8 8 5 5 5 Average Capacity 7 | 7 9 8 8 8 8 8 8 8 8 8 8 8 8 8 8 7 5 5 5 Most Carried 8 | 6 8 8 8 8 8 8 7 8 8 8 8 8 8 8 8 8 5 5 5 Average Carried 6 | 2 6 7 7 7 7 7 6 7 7 8 7 5 7 8 7 5 4 4 4 Final Capacity 10 | 8 10 8 8 8 8 8 8 8 8 8 8 8 8 8 8 5 5 5 5 Final Carried 8 | 4 8 8 7 8 8 7 7 8 8 8 6 6 8 8 8 5 4 4 5 Class Distribution -------------------- 27% | Sprinter 21% | Scavenger-Gunner 21% | Scavenger-Mutant 16% | Mutant 8% | Hacker-Sprinter 3% | Hacker-Mutant Dominant Class ---------------- Mutant | -10/Materials Mutant | -10/Mines Mutant | -10/Exiles Mutant | -9/Mines Scavenger-Mutant | -8/Materials Sprinter | -7/Factory Sprinter | -6/Factory Sprinter | -6/Lower Caves Mutant | -6/Lower Caves Sprinter | -6/Zion Sprinter | -5/Proximity Caves Hacker-Sprinter | -5/Factory Sprinter | -5/Upper Caves Sprinter | -5/Upper Caves Hacker-Sprinter | -4/Factory Scavenger-Mutant | -4/Extension Scavenger-Mutant | -4/Cetus Scavenger-Gunner | -4/Archives Scavenger-Gunner | -4/Hub_04(d) Resources | -11 -10 -10 -10 -9 -8 -7 -6 -6 -6 -6 -5 -5 -5 -5 -4 -4 -4 -4 -4 ----------- Run | Yrd Mat Min Exi Min Mat Fac Fac Low Low Zio Pro Fac Upp Upp Fac Ext Cet Arc Hub Matter Collected 1856 | 260 70 65 . 112 17 138 . 8 97 . 66 108 109 50 . 362 62 114 218 Remotely . | . . . . . . . . . . . . . . . . . . . . Salvage Created 2679 | . 74 93 . . 28 48 . 40 . . 166 165 8 126 . 1035 107 388 401 Parts 104 | . 7 6 . . 3 1 . 4 . . 7 6 1 7 . 34 3 7 18 Haulers Intercepted . | . . . . . . . . . . . . . . . . . . . . Recyclers Shooed 1 | . . . . . . . . . . . . . . . . . . . 1 Parts Field Recycled . | . . . . . . . . . . . . . . . . . . . . Retrieved Matter . | . . . . . . . . . . . . . . . . . . . . Parts Self-Destructed 9 | . . . . . . . . 1 . . 4 . 1 3 . . . . . Prevented . | . . . . . . . . . . . . . . . . . . . . Kills | -11 -10 -10 -10 -9 -8 -7 -6 -6 -6 -6 -5 -5 -5 -5 -4 -4 -4 -4 -4 ------- Run | Yrd Mat Min Exi Min Mat Fac Fac Low Low Zio Pro Fac Upp Upp Fac Ext Cet Arc Hub Combat Hostiles Destroyed 61 | . 1 6 . . 3 1 . 3 . . 6 5 4 6 . 14 1 4 7 Guns 35 | . 1 6 . . . 1 . . . . 4 5 . . . 12 1 3 2 Cannons 6 | . . . . . . . . . . . . . . . . 1 . . 5 AOE 18 | . . . . . 3 . . 3 . . 2 . 4 6 . . . . . Classes Destroyed 8 | . 2 1 . . . . . . . . 1 1 . 1 . 2 . . . Operator 1 | . 1 . . . . . . . . . . . . . . . . . . Watcher 2 | . . . . . . . . . . . . . . . . 1 1 . . Swarmer 30 | . . 6 . . 3 . . 3 . . 4 4 4 5 . 1 . . . Grunt 14 | . 1 . . . . 1 . . . . . . . . . 10 . . 2 Sentry 7 | . . . . . . . . . . . . 1 . . . 1 . 4 1 Hunter 4 | . . . . . . . . . . . . . . 1 . 1 . . 2 Programmer 4 | . . . . . . . . . . . 2 . . . . . . . 2 Behemoth 1 | . . . . . . . . . . . . . . . . 1 . . . Cetus Guard 1 | . . . . . . . . . . . . . . . . . 1 . . Best Kill Streak 6 | . 2 3 . . 3 1 . 3 . . 4 5 4 6 . 4 1 2 2 Combat Bots Only 6 | . 1 3 . . 3 1 . 3 . . 4 5 4 6 . 4 1 2 2 Max Kills in Single Turn 5 | . 1 2 . . 3 1 . 2 . . 2 1 2 5 . 1 1 1 1 Gunslinging 1 | . . 1 . . . . . . . . . . . . . . . . . Exploded 5 | . . . . . 3 . . 2 . . 2 . 2 5 . . . . . Melee . | . . . . . . . . . . . . . . . . . . . . Uniques/NPCs Destroyed . | . . . . . . . . . . . . . . . . . . . . Combat | -11 -10 -10 -10 -9 -8 -7 -6 -6 -6 -6 -5 -5 -5 -5 -4 -4 -4 -4 -4 -------- Run | Yrd Mat Min Exi Min Mat Fac Fac Low Low Zio Pro Fac Upp Upp Fac Ext Cet Arc Hub Hostile Shots Fired 722 | . 9 61 . . 13 26 18 14 6 . 36 51 9 2 1 217 36 71 152 Missed 235 | . 3 16 . . 6 15 12 7 2 . 16 27 2 . 1 67 8 16 37 Damage Taken 9377 | . 87 360 . . 71 116 46 90 73 . 360 380 113 34 . 3486 876 1478 1807 Core 1470 | . . 90 . . 10 20 24 21 . . 90 47 15 . . 477 249 242 185 Absorbed by Shields . | . . . . . . . . . . . . . . . . . . . . Reduced by Siege Mode 69 | . . . . . . . . . . . . . . . . . . 7 62 Core Remaining (%) 89 | 100 . . . 64 98 97 . . . . 84 . . 93 . . . . . Volleys Fired 127 | . 10 12 . . 1 . . 2 . . 3 4 3 2 . 46 6 16 22 Largest 4 | . 2 2 . . 1 . . 1 . . 1 1 1 1 . 2 2 3 4 Hottest 242 | . 40 40 . . 30 . . 30 . . 30 100 39 39 . 191 115 196 242 Shots Fired 334 | . 20 24 . . 1 5 . 2 . . 20 18 3 2 . 115 9 42 73 Gun 300 | . 20 24 . . . 5 . . . . 17 15 . . . 110 9 42 58 Cannon 20 | . . . . . . . . . . . . . . . . 5 . . 15 Launcher 12 | . . . . . 1 . . 2 . . 3 1 3 2 . . . . . Special 2 | . . . . . . . . . . . . 2 . . . . . . . Kinetic 182 | . 20 24 . . . 5 . . . . 17 14 . . . 36 3 16 47 Thermal 128 | . . . . . . . . . . . . 2 . . . 71 6 26 23 Explosive 12 | . . . . . 1 . . 2 . . 3 1 3 2 . . . . . Electromagnetic 12 | . . . . . . . . . . . . 1 . . . 8 . . 3 Robot Hit Streak 43 | . 5 4 . . . 3 . 3 . . 9 13 14 3 . 43 5 20 28 Robot Miss Streak 2 | . 2 2 . . 1 1 . . . . 2 1 1 . . 2 2 1 2 Penetration Max 1 | . . . . . . . . . . . . . . . . . . . 1 Secondary Targets 6 | . . 3 . . . . . . . . . . . . . 2 . . 1 Max Gunslinging Chain 1 | . . 1 . . . . . . . . . . . . . 1 . . 1 Autonomous 72 | . . . . . . 5 . . . . 17 14 . . . 36 . . . Shots Hit Robots 297 | . 14 12 3 . . 4 . 2 1 . 17 15 2 2 . 113 7 38 67 Core Hits 133 | . 5 6 . . 2 3 . 3 . . 11 7 6 8 . 44 4 11 23 Critical Kills 2 | . . . . . . . . . . . . . . . . . . 1 1 Critical Parts Destroyed 4 | . . . . . . . . . . . 1 1 . . . . . 2 . Critical Strikes 19 | . . . . . . . . . . . 1 3 . . . 5 2 3 5 Burn 8 | . . . . . . . . . . . . 2 . . . 5 1 . . Destroy 7 | . . . . . . . . . . . 1 1 . . . . 1 3 1 Blast 4 | . . . . . . . . . . . . . . . . . . . 4 Melee Attacks 23 | . . . 3 . . . . . 1 . . 1 . . 2 16 . . . Impact 11 | . . . . . . . . . . . . 1 . . 2 8 . . . Slashing . | . . . . . . . . . . . . . . . . . . . . Piercing . | . . . . . . . . . . . . . . . . . . . . Sneak Attacks 9 | . . . 1 . . . . . . . . . . . . 8 . . . Combat Hostiles 1 | . . . . . . . . . . . . . . . . 1 . . . Follow-up Attacks . | . . . . . . . . . . . . . . . . . . . . Damage Inflicted 8813 | . 191 171 . . 121 172 . 159 . . 663 370 483 407 . 3010 191 1006 1869 Guns 6629 | . 191 171 . . . 172 . . . . 473 343 . . . 2731 191 1006 1351 Cannons 665 | . . . . . . . . . . . . . . . . 147 . . 518 Explosions 1360 | . . . . . 121 . . 159 . . 190 . 483 407 . . . . . Melee 132 | . . . . . . . . . . . . . . . . 132 . . . Ramming . | . . . . . . . . . . . . . . . . . . . . Kinetic 4391 | . 191 171 . . . 172 . . . . 473 343 . . . 1271 55 371 1344 Thermal 2632 | . . . . . . . . . . . . 27 . . . 1385 136 635 449 Explosive 1360 | . . . . . 121 . . 159 . . 190 . 483 407 . . . . . Electromagnetic 298 | . . . . . . . . . . . . . . . . 222 . . 76 Impact 132 | . . . . . . . . . . . . . . . . 132 . . . Slashing . | . . . . . . . . . . . . . . . . . . . . Piercing . | . . . . . . . . . . . . . . . . . . . . Highest Corruption 7 | . . . . . . . . . . . . . . . . . . . 7 Average Corruption 6 | . . . . . . . . . . . . . . . . . . . 6 Corruption Purged . | . . . . . . . . . . . . . . . . . . . . Corruption Blocked . | . . . . . . . . . . . . . . . . . . . . Effects 4 | . . . . . . . . . . . . . . . . . . . 4 Message Errors 2 | . . . . . . . . . . . . . . . . . . . 2 Heat Flow Errors 1 | . . . . . . . . . . . . . . . . . . . 1 Data Loss (minor) 1 | . . . . . . . . . . . . . . . . . . . 1 Overload Shots . | . . . . . . . . . . . . . . . . . . . . Overflow Damage 53 | . . . . . 8 . . 15 . . . . 23 . . . . . 7 Projectiles 7 | . . . . . . . . . . . . . . . . . . . 7 Explosions 46 | . . . . . 8 . . 15 . . . . 23 . . . . . . Melee . | . . . . . . . . . . . . . . . . . . . . Knockbacks 1 | . . . . . . . . . . . . . . . . . . . 1 Impact . | . . . . . . . . . . . . . . . . . . . . Kinetic 1 | . . . . . . . . . . . . . . . . . . . 1 Secondary . | . . . . . . . . . . . . . . . . . . . . Self-Inflicted Damage 5 | . . . . . . . . . . . . 5 . . . . . . . Shots 1 | . . . . . . . . . . . . 1 . . . . . . . Rammed . | . . . . . . . . . . . . . . . . . . . . Targets Rammed . | . . . . . . . . . . . . . . . . . . . . Kicked . | . . . . . . . . . . . . . . . . . . . . Crushed . | . . . . . . . . . . . . . . . . . . . . Highest Temperature 465 | . 2 . . . 3 38 2 18 . . 102 303 155 204 78 437 127 357 465 Average Temperature 97 | . 1 . . . 3 14 1 13 . . 37 111 76 88 37 116 47 181 165 Received Heat Transfer 1269 | . 48 . . . 18 54 12 18 . . 54 . . 9 . 726 63 198 69 Effects 12 | . . . . . . . . . . . . 2 . . . 2 . 2 6 Shutdowns 3 | . . . . . . . . . . . . . . . . 1 . 1 1 Energy Bleed 2 | . . . . . . . . . . . . 1 . . . . . . 1 Interference 4 | . . . . . . . . . . . . . . . . . . 1 3 Matter Decay 1 | . . . . . . . . . . . . 1 . . . . . . . Damage (minor) 1 | . . . . . . . . . . . . . . . . 1 . . . Damage (major) 1 | . . . . . . . . . . . . . . . . . . . 1 Siege Activations 3 | . . . . . . . . . . . . . . . . . . 1 2 Total Turns 40 | . . . . . . . . . . . . . . . . . . 16 24 Longest Duration 16 | . . . . . . . . . . . . . . . . . . 16 12 Robots Corrupted . | . . . . . . . . . . . . . . . . . . . . Combat Hostiles . | . . . . . . . . . . . . . . . . . . . . Parts Fried 2 | . . . . . . . . . . . . . . . . 2 . . . Impact Corruptions . | . . . . . . . . . . . . . . . . . . . . Robots Melted 2 | . . . . . . . . . . . . . . . . 1 . 1 . Combat Hostiles 2 | . . . . . . . . . . . . . . . . 1 . 1 . Parts Melted 14 | . . . . . . . . . . . . . . . . 11 . 3 . Heat Transferred 5299 | . . . . . . . . . . . . 480 . . . 3006 259 888 666 Parts Sabotaged . | . . . . . . . . . . . . . . . . . . . . Parts Stolen . | . . . . . . . . . . . . . . . . . . . . Parts Stripped . | . . . . . . . . . . . . . . . . . . . . Power Chain Reactions . | . . . . . . . . . . . . . . . . . . . . Alert | -11 -10 -10 -10 -9 -8 -7 -6 -6 -6 -6 -5 -5 -5 -5 -4 -4 -4 -4 -4 ------- Run | Yrd Mat Min Exi Min Mat Fac Fac Low Low Zio Pro Fac Upp Upp Fac Ext Cet Arc Hub Peak Influence 554 | . 65 195 . . 158 322 207 . . . . 372 . . 216 554 345 162 155 Initial 300 | . . 25 . . . 71 157 . . . . 204 . . 182 105 300 41 56 Average 173 | . 35 124 . . 40 145 165 . . . . 212 . . 193 242 313 121 78 Maximum Alert Level 2 | . . . . . . 1 1 . . . . 1 . . 1 2 1 . . Low Security (%) 63 | 100 100 100 . 100 100 72 95 . . . . 23 . . 77 40 11 100 100 Level 1 30 | . . . . . . 27 4 . . . . 76 . . 22 40 88 . . Level 2 5 | . . . . . . . . . . . . . . . . 18 . . . Level 3 . | . . . . . . . . . . . . . . . . . . . . Level 4 . | . . . . . . . . . . . . . . . . . . . . Level 5 . | . . . . . . . . . . . . . . . . . . . . High Security . | . . . . . . . . . . . . . . . . . . . . Max Security . | . . . . . . . . . . . . . . . . . . . . Squads Dispatched 19 | . 1 . . . 1 3 3 . . . . 1 . . . 5 . . 5 Investigation 10 | . . . . . . 3 1 . . . . 1 . . . 4 . . 1 Extermination 1 | . . . . . . . . . . . . . . . . . . . 1 Reinforcement 6 | . 1 . . . 1 . 2 . . . . . . . . 1 . . 1 Assault . | . . . . . . . . . . . . . . . . . . . . Garrison 2 | . . . . . . . . . . . . . . . . . . . 2 Intercept . | . . . . . . . . . . . . . . . . . . . . Searches Triggered . | . . . . . . . . . . . . . . . . . . . . Construction Impeded . | . . . . . . . . . . . . . . . . . . . . Haulers Reinforced . | . . . . . . . . . . . . . . . . . . . . Active Scanning Responses . | . . . . . . . . . . . . . . . . . . . . Cargo Convoy Interrupts . | . . . . . . . . . . . . . . . . . . . . Stealth | -11 -10 -10 -10 -9 -8 -7 -6 -6 -6 -6 -5 -5 -5 -5 -4 -4 -4 -4 -4 --------- Run | Yrd Mat Min Exi Min Mat Fac Fac Low Low Zio Pro Fac Upp Upp Fac Ext Cet Arc Hub Distress Signals 8 | . . . . . 1 1 . . . . . . . . . 2 2 . 2 Communications Jammed . | . . . . . . . . . . . . . . . . . . . . Distress Signals . | . . . . . . . . . . . . . . . . . . . . Times Spotted 185 | . 3 9 . . 15 13 5 6 1 . 22 15 5 7 2 52 9 4 17 Peak Tracking Total 11 | . 2 3 . . 9 7 5 6 1 . 11 11 4 8 2 9 5 2 5 Tactical Retreats 23 | . . 1 . . 3 5 . . . . 3 1 . . . 8 . . 2 Traps | -11 -10 -10 -10 -9 -8 -7 -6 -6 -6 -6 -5 -5 -5 -5 -4 -4 -4 -4 -4 ------- Run | Yrd Mat Min Exi Min Mat Fac Fac Low Low Zio Pro Fac Upp Upp Fac Ext Cet Arc Hub Traps Triggered 7 | . . . . . . 1 . . . . . . . . . 4 . . 2 Indirectly . | . . . . . . . . . . . . . . . . . . . . Trap Hack Attempts . | . . . . . . . . . . . . . . . . . . . . Triggered . | . . . . . . . . . . . . . . . . . . . . Disarmed . | . . . . . . . . . . . . . . . . . . . . Reprogrammed . | . . . . . . . . . . . . . . . . . . . . Reused . | . . . . . . . . . . . . . . . . . . . . Traps Extracted . | . . . . . . . . . . . . . . . . . . . . Installed 3 | . . 3 . . . . . . . . . . . . . . . . . Triggered 1 | . . . . . . . . . 1 . . . . . . . . . . Most Traps Carried 1 | . . 1 1 . . . . . . . . . . . . . . . . Machines | -11 -10 -10 -10 -9 -8 -7 -6 -6 -6 -6 -5 -5 -5 -5 -4 -4 -4 -4 -4 ---------- Run | Yrd Mat Min Exi Min Mat Fac Fac Low Low Zio Pro Fac Upp Upp Fac Ext Cet Arc Hub Machines Disabled 5 | . . . . . . . . . . . . 1 . . . 3 . 1 . Max in Single Turn 1 | . . . . . . . . . . . . 1 . . . . . 1 . Garrison Access 1 | . . . . . . 1 . . . . . . . . . . . . . Machines Repaired . | . . . . . . . . . . . . . . . . . . . . Machines Dismantled . | . . . . . . . . . . . . . . . . . . . . Machines Sabotaged . | . . . . . . . . . . . . . . . . . . . . Overloaded Fab Kills . | . . . . . . . . . . . . . . . . . . . . Hacking | -11 -10 -10 -10 -9 -8 -7 -6 -6 -6 -6 -5 -5 -5 -5 -4 -4 -4 -4 -4 --------- Run | Yrd Mat Min Exi Min Mat Fac Fac Low Low Zio Pro Fac Upp Upp Fac Ext Cet Arc Hub Machines Accessed 53 | . 1 . 1 1 4 6 3 1 2 . 1 9 . . 1 14 3 1 5 Terminals 42 | . 1 . . . 3 3 3 . . . 1 8 . . 1 14 3 . 5 Fabricators 2 | . . . . . . 2 . . . . . . . . . . . . . Repair Stations . | . . . . . . . . . . . . . . . . . . . . Recycling Units 1 | . . . . . 1 . . . . . . . . . . . . . . Scanalyzers 1 | . . . . . . . . . . . . 1 . . . . . . . Garrison Access 1 | . . . . . . 1 . . . . . . . . . . . . . Total Hacks 164 | . 4 . 1 1 9 14 10 1 8 . 4 28 . . 2 32 10 25 15 Successful 96 | . 2 . 1 1 6 8 2 1 8 . 4 15 . . 1 9 5 25 8 Failed 68 | . 2 . . . 3 6 8 . . . . 13 . . 1 23 5 . 7 Catastrophic 9 | . . . . . . 2 1 . . . . 4 . . . . . . 2 Database Lockouts . | . . . . . . . . . . . . . . . . . . . . Manual 73 | . 4 . 1 . 7 8 9 . . . 4 21 . . 5 1 2 9 2 Terminals 117 | . 4 . . . 7 8 10 . . . 4 25 . . 2 32 10 . 15 Fabricators 5 | . . . . . . 5 . . . . . . . . . . . . . Repair Stations . | . . . . . . . . . . . . . . . . . . . . Recycling Units 2 | . . . . . 2 . . . . . . . . . . . . . . Scanalyzers 3 | . . . . . . . . . . . . 3 . . . . . . . Garrison Access 1 | . . . . . . 1 . . . . . . . . . . . . . Terminal Hacks 78 | . 2 . 1 1 4 . 1 1 8 . 4 8 . . 1 9 5 25 8 Record 51 | . . . . . . . . . 7 . 4 4 . . 1 . 4 25 6 Part Schematic 1 | . . . . . 1 . . . . . . . . . . . . . . Robot Analysis 1 | . 1 . . . . . . . . . . . . . . . . . . Open Door 13 | . . . . 1 . . . 1 1 . . . . . . 9 1 . . Open DSF 1 | . . . . . . . . . . . . 1 . . . . . . . Level Access Points 1 | . . . . . 1 . . . . . . . . . . . . . . Branch Access Points 1 | . . . . . . . 1 . . . . . . . . . . . . Emergency Access Points 1 | . . . . . 1 . . . . . . . . . . . . . . Alert Level 2 | . 1 . . . . . . . . . . 1 . . . . . . . Unreport Threat 5 | . . . . . 1 . . . . . . 2 . . . . . . 2 Derelict Proto ID Bank 1 | . . . 1 . . . . . . . . . . . . . . . . Fabricator Hacks 5 | . . . . . . 5 . . . . . . . . . . . . . Network Status 1 | . . . . . . 1 . . . . . . . . . . . . . Load Schematic 2 | . . . . . . 2 . . . . . . . . . . . . . Build 2 | . . . . . . 2 . . . . . . . . . . . . . Repair Station Hacks . | . . . . . . . . . . . . . . . . . . . . Recycling Unit Hacks 2 | . . . . . 2 . . . . . . . . . . . . . . Report Inventory 1 | . . . . . 1 . . . . . . . . . . . . . . Retrieve Components 1 | . . . . . 1 . . . . . . . . . . . . . . Scanalyzer 3 | . . . . . . . . . . . . 3 . . . . . . . Insert Component 1 | . . . . . . . . . . . . 1 . . . . . . . Analyze 2 | . . . . . . . . . . . . 2 . . . . . . . Garrison Access Hacks 1 | . . . . . . 1 . . . . . . . . . . . . . Seal Access 1 | . . . . . . 1 . . . . . . . . . . . . . Unauthorized Hacks 7 | . . . . . . 2 1 . . . . 4 . . . . . . . Terminals 7 | . . . . . . 2 1 . . . . 4 . . . . . . . Assimilate 1 | . . . . . . 1 . . . . . . . . . . . . . Botnet 6 | . . . . . . 1 1 . . . . 4 . . . . . . . Fabricators . | . . . . . . . . . . . . . . . . . . . . Repair Stations . | . . . . . . . . . . . . . . . . . . . . Recycling Units . | . . . . . . . . . . . . . . . . . . . . Scanalyzers . | . . . . . . . . . . . . . . . . . . . . Garrison Access . | . . . . . . . . . . . . . . . . . . . . Data Cores Recovered . | . . . . . . . . . . . . . . . . . . . . Used . | . . . . . . . . . . . . . . . . . . . . Hacking Detections 35 | . . . . . 4 4 3 . . . . 8 . . 2 7 2 . 5 Full Trace Events 9 | . . . . . . 2 1 . . . . 1 . . . 4 . . 1 Feedback Events . | . . . . . . . . . . . . . . . . . . . . Feedback Blocked . | . . . . . . . . . . . . . . . . . . . . Robot Schematics Acquired 3 | . . . . . . . . . . 3 . . . . . . . . . Robots Built . | . . . . . . . . . . . . . . . . . . . . Authchips . | . . . . . . . . . . . . . . . . . . . . Time . | . . . . . . . . . . . . . . . . . . . . Total Robot Build Rating . | . . . . . . . . . . . . . . . . . . . . Part Schematics Acquired 17 | . . . . . 1 . . . . 15 . 1 . . . . . . . Parts Built 2 | . . . . . . 2 . . . . . . . . . . . . . Authchips . | . . . . . . . . . . . . . . . . . . . . Time 146 | . . . . . . 146 . . . . . . . . . . . . . Total Part Build Rating 6 | . . . . . . 6 . . . . . . . . . . . . . Parts Repaired . | . . . . . . . . . . . . . . . . . . . . Time . | . . . . . . . . . . . . . . . . . . . . Parts Recycled . | . . . . . . . . . . . . . . . . . . . . Recycled Matter . | . . . . . . . . . . . . . . . . . . . . Retrieved Matter . | . . . . . . . . . . . . . . . . . . . . Retrieved Components 2 | . . . . . 2 . . . . . . . . . . . . . . Parts Scanalyzed 1 | . . . . . . . . . . . . 1 . . . . . . . Part Schematics Acquired 1 | . . . . . . . . . . . . 1 . . . . . . . Parts Damaged . | . . . . . . . . . . . . . . . . . . . . Bothacking | -11 -10 -10 -10 -9 -8 -7 -6 -6 -6 -6 -5 -5 -5 -5 -4 -4 -4 -4 -4 ------------ Run | Yrd Mat Min Exi Min Mat Fac Fac Low Low Zio Pro Fac Upp Upp Fac Ext Cet Arc Hub Used RIF Installer . | . . . . . . . . . . . . . . . . . . . . Robots Hacked . | . . . . . . . . . . . . . . . . . . . . Non-combat . | . . . . . . . . . . . . . . . . . . . . Combat . | . . . . . . . . . . . . . . . . . . . . Robot Hacks Applied . | . . . . . . . . . . . . . . . . . . . . Relay Couplers Released . | . . . . . . . . . . . . . . . . . . . . Fabnet Peak Effective % . | . . . . . . . . . . . . . . . . . . . . Robots Rewired 7 | . . . . . . . . . . . . . . . . 7 . . . Allies Hacked . | . . . . . . . . . . . . . . . . . . . . Hacks Repelled . | . . . . . . . . . . . . . . . . . . . . Allies | -11 -10 -10 -10 -9 -8 -7 -6 -6 -6 -6 -5 -5 -5 -5 -4 -4 -4 -4 -4 -------- Run | Yrd Mat Min Exi Min Mat Fac Fac Low Low Zio Pro Fac Upp Upp Fac Ext Cet Arc Hub Total Allies 24 | . . . . . . 1 . . 2 . . . . . . 21 . . . Largest Group 11 | . . . . . . 1 1 . 2 . . . . . . 11 3 . . Highest-Rated Group 474 | . . . . . . 10 10 . 62 . . . . . . 474 138 . . Highest-Rated Ally 51 | . . . . . . 10 10 . 31 . . . . . . 51 46 . . Total Orders . | . . . . . . . . . . . . . . . . . . . . Ally Attacks 176 | . . . . . . . . . 7 . . . . . . 111 58 . . Total Damage 4959 | . . . . . . . . . 84 . . . . . . 3830 1045 . . Kills 26 | . . . . . . . . . . . . . . . . 23 3 . . Allies Corrupted . | . . . . . . . . . . . . . . . . . . . . Allies Melted . | . . . . . . . . . . . . . . . . . . . . Intel | -11 -10 -10 -10 -9 -8 -7 -6 -6 -6 -6 -5 -5 -5 -5 -4 -4 -4 -4 -4 ------- Run | Yrd Mat Min Exi Min Mat Fac Fac Low Low Zio Pro Fac Upp Upp Fac Ext Cet Arc Hub Robot Analysis Total 1 | . 1 . . . . . . . . . . . . . . . . . . Derelict Logs Recovered 8 | . . 1 . 1 . . . . 1 3 . . 2 . . . . . . Drone Launches . | . . . . . . . . . . . . . . . . . . . . Drone Recoveries . | . . . . . . . . . . . . . . . . . . . . Exploration | -11 -10 -10 -10 -9 -8 -7 -6 -6 -6 -6 -5 -5 -5 -5 -4 -4 -4 -4 -4 ------------- Run | Yrd Mat Min Exi Min Mat Fac Fac Low Low Zio Pro Fac Upp Upp Fac Ext Cet Arc Hub Turns Passed 4495 | 68 118 125 228 117 130 278 67 151 160 277 130 177 194 36 49 965 450 348 427 Spaces Moved 8041 | 40 92 127 357 300 308 811 258 594 298 1128 488 592 729 134 181 925 270 160 249 Core 22 | 22 . . . . . . . . . . . . . . . . . . . Treads 439 | . . . . . . . . . . . . . . . . . 239 160 40 Legs 471 | . . . 96 . . . . . 83 . . . . . . 63 31 . 198 Wheels 474 | 18 92 3 . . . . . . . . . . . . . 361 . . . Hover . | . . . . . . . . . . . . . . . . . . . . Flight 6635 | . . 124 261 300 308 811 258 594 215 1128 488 592 729 134 181 501 . . 11 Fastest Speed 17 | 50 90 37 37 37 28 25 21 23 23 24 20 17 21 18 21 18 120 160 32 Average Speed 43 | 131 90 42 59 37 36 25 23 23 47 24 23 22 24 22 21 60 155 160 122 Slowest Speed 200 | 200 90 120 120 37 67 28 24 26 110 24 29 25 25 25 21 145 160 160 160 Overloaded Moves 523 | . . . . . . . . . . . . 269 71 62 . 121 . . . Propulsion Burnouts . | . . . . . . . . . . . . . . . . . . . . Robots Hopped 54 | . . . . . . 29 2 . . . 2 4 . . 2 15 . . . Cave-ins Triggered . | . . . . . . . . . . . . . . . . . . . . Exploration Rate (%) 48 | 4 24 22 75 56 36 26 11 78 40 88 69 25 85 16 8 84 82 97 41 Regions Visited 19 Branch Regions 13 Pre-discovered Areas 2 | . . . . 1 . . . . . 1 . . . . . . . . . Known Exits Taken 4 | . . . . . 1 . 1 . . . 1 . 1 . . . . . . Unknown Exits Taken 15 | 1 1 1 1 1 . 1 . 1 1 1 . 1 . 1 1 1 1 1 . Scrap Searched 10 | . . . . 1 . . . 2 1 1 . . 4 1 . . . . . Spaces Dug 13 | . . . . . . . . . . . . 6 . . 2 5 . . . Terrain Destroyed 132 | . . . . . . 1 . 4 . . 31 10 29 29 2 10 . 5 11 Melee 8 | . . . . . . . . . . . . 1 . . 2 5 . . . Projectile 30 | . . . . . . 1 . . . . 4 4 . . . 5 . 5 11 AOE 94 | . . . . . . . . 4 . . 27 5 29 29 . . . . . Terrain Rammed . | . . . . . . . . . . . . . . . . . . . . Walls Destroyed . | . . . . . . . . . . . . . . . . . . . . Machines Disabled . | . . . . . . . . . . . . . . . . . . . . Actions | -11 -10 -10 -10 -9 -8 -7 -6 -6 -6 -6 -5 -5 -5 -5 -4 -4 -4 -4 -4 --------- Run | Yrd Mat Min Exi Min Mat Fac Fac Low Low Zio Pro Fac Upp Upp Fac Ext Cet Arc Hub Total 8739 | 55 106 176 370 306 322 849 259 599 316 1132 499 628 740 136 185 1231 292 217 321 Wait 287 | . . 16 . . 1 50 . . 4 . . 14 3 . 1 148 2 32 16 Move 7928 | 39 91 126 356 299 307 760 253 593 297 1127 483 584 728 133 176 899 269 159 249 Hop 40 | . . . . . . 21 2 . . . 2 3 . . 2 10 . . . Pick Up 90 | 10 4 3 1 4 1 6 1 . 5 1 4 8 1 . 2 21 5 4 9 Fast Attach 32 | . . 2 . . 4 3 . 1 1 . . . 1 1 . 10 2 1 6 Attach 85 | 6 . 4 1 . 4 3 1 1 2 . 5 9 . . 2 26 7 4 10 Detach 20 | . . 4 . . 3 . . 1 . . . 2 1 . . 5 1 . 3 Swap 26 | . 1 1 4 . 1 1 2 1 3 3 . 1 1 . . 5 . 1 1 Drop 33 | . . 5 2 3 . 5 . . 3 1 2 2 2 . . 3 . . 5 Fire 127 | . 10 12 . . 1 . . 2 . . 3 4 3 2 . 46 6 16 22 Melee 23 | . . . 3 . . . . . 1 . . 1 . . 2 16 . . . Ram . | . . . . . . . . . . . . . . . . . . . . Kick . | . . . . . . . . . . . . . . . . . . . . Crush . | . . . . . . . . . . . . . . . . . . . . Escape Stasis 42 | . . . . . . . . . . . . . . . . 42 . . . Rewire 3 | . . . 3 . . . . . . . . . . . . . . . . Trap 3 | . . 3 . . . . . . . . . . . . . . . . . Miscellaneous . | . . . . . . . . . . . . . . . . . . . . Route ------- -11/Scrapyard -10/Materials -10/Mines (discovered 2 exits: *Exi / Sub) -10/Exiles (discovered 2 exits: *Min x2) -9/Mines -8/Materials (discovered 3 exits: *Fac x3) -7/Factory -6/Factory (discovered 2 exits: *Low x2) -6/Lower Caves -6/Lower Caves -6/Zion -5/Proximity Caves -5/Factory (discovered 2 exits: [*Upp x2]) -5/Upper Caves -5/Upper Caves -4/Factory -4/Extension (discovered 2 exits: [*Res] / *Cet) -4/Cetus -4/Archives (discovered 3 exits: [*Res] / *Hub x2) -4/Hub_04(d) History --------- Turn | Location | Event 31 | -11/Scrapyard | Discovered new exit (range 15) 69 | -11/Scrapyard | Entered Materials 170 | -10/Materials | Discovered new exit (range 15) 187 | -10/Materials | Entered Mines 228 | -10/Mines | Identified exit to Subcaves 243 | -10/Mines | Found a hidden stash of uninstalled traps 310 | -10/Mines | Deemed a non-threat by the Exiles lab entrance 310 | -10/Mines | Discovered new exit (range 5) 312 | -10/Mines | Entered Exiles 318 | -10/Exiles | Discovered new exit (range 15) 320 | -10/Exiles | Build established: Mutant 328 | -10/Exiles | Met 8R-AWN 335 | -10/Exiles | Met EX-HEX 417 | -10/Exiles | Met EX-BIN 432 | -10/Exiles | Aligned with FarCom system 433 | -10/Exiles | Given EX-Vault access code 461 | -10/Exiles | Opened EX-Vault 470 | -10/Exiles | Found AWS/Gauss 487 | -10/Exiles | Warned to stay clear of 0b10 Research branches 498 | -10/Exiles | Met EX-DEC 511 | -10/Exiles | Visited The Gauntlet 537 | -10/Exiles | Discovered new exit (range 10) 540 | -10/Exiles | Left Exiles lab with AWS/Gauss 540 | -10/Exiles | Entered Mines 546 | -9/Mines | Met a Derelict who couldn't figure out how to use a Trap Extractor 612 | -9/Mines | Learned location of Zion (-6) 650 | -9/Mines | Discovered new exit (range 4) 657 | -9/Mines | Entered Materials 657 | -8/Materials | Evolved 4 slots: Propulsion x3, Utility x1 749 | -8/Materials | Identified exit to Factory 787 | -8/Materials | Entered Factory 787 | -7/Factory | Evolved 2 slots: Utility x1, Weapon x1 898 | -7/Factory | Fabricated Hacking Suite? 910 | -7/Factory | Fabricated Hacking Suite? 1037 | -7/Factory | Discovered new exit (range 15) 1051 | -7/Factory | Build established: Sprinter 1065 | -7/Factory | Entered another Factory area 1065 | -6/Factory | Accompanied by 1 ally 1065 | -6/Factory | Evolved 2 slots: Propulsion x1, Utility x1 1082 | -6/Factory | Identified exit to Lower Caves 1132 | -6/Factory | Entered Lower Caves 1173 | -6/Lower Caves | Encountered a Warlord checkpoint 1208 | -6/Lower Caves | Discovered new exit (range 5) 1267 | -6/Lower Caves | Attracted the attention of an 0b10 checkpoint 1283 | -6/Lower Caves | Entered another Lower Caves area 1285 | -6/Lower Caves | Learned Factory trap positions 1329 | -6/Lower Caves | Learned Research emergency access door positions 1329 | -6/Lower Caves | Learned Extension stockpile data 1329 | -6/Lower Caves | Learned Armory garrison access intel 1340 | -6/Lower Caves | A Commander dispatched an escort 1422 | -6/Lower Caves | Discovered new exit (range 5) 1443 | -6/Lower Caves | Entered Zion 1457 | -6/Zion | Given the Hacking Drone Bay 1458 | -6/Zion | Found Prototype Device 1464 | -6/Zion | Discovered new exit (range 15) 1514 | -6/Zion | Acquired unknown access codes intercepted by a Zionite 1531 | -6/Zion | Learned location of 1 exit from Lower Caves 1538 | -6/Zion | Learned Factory stockpile data 1625 | -6/Zion | Rebuked by Imprinter 1720 | -6/Zion | Entered Proximity Caves 1732 | -5/Proximity Caves | Attracted the attention of an 0b10 base 1732 | -5/Proximity Caves | Identified exit to Factory 1732 | -5/Proximity Caves | Learned Armory stockpile data 1810 | -5/Proximity Caves | Lost 3 parts (2n1w) 1837 | -5/Proximity Caves | Spotted B-75 Beast 1847 | -5/Proximity Caves | Attracted the attention of an 0b10 checkpoint 1850 | -5/Proximity Caves | Entered Factory 1850 | -5/Factory | Evolved 2 slots: Power x1, Propulsion x1 1851 | -5/Factory | Loaded intel: 86 trap records 1867 | -5/Factory | Identified exit to DSF 1979 | -5/Factory | Lost 6 parts (1p3n2w) 2014 | -5/Factory | Discovered new exit (range 15) 2016 | -5/Factory | Discovered new exit (range 7) 2027 | -5/Factory | Entered Upper Caves 2028 | -5/Upper Caves | Encountered a Warlord checkpoint 2081 | -5/Upper Caves | Identified exit to Upper Caves 2094 | -5/Upper Caves | Learned Factory emergency access door positions 2221 | -5/Upper Caves | Attracted the attention of an 0b10 checkpoint 2221 | -5/Upper Caves | Entered another Upper Caves area 2245 | -5/Upper Caves | Discovered new exit (range 13) 2257 | -5/Upper Caves | Entered Factory 2257 | -4/Factory | Evolved 2 slots: Utility x1, Weapon x1 2302 | -4/Factory | Discovered new exit (range 16) 2306 | -4/Factory | Entered Extension 2337 | -4/Extension | Spotted B-86 Titan 2377 | -4/Extension | Rescued a captive Derelict 2379 | -4/Extension | Lost 3 parts (1p1u1w) 2511 | -4/Extension | Rescued a captive Derelict 2511 | -4/Extension | Rescued a captive Derelict 2519 | -4/Extension | Spotted B-86 Titan 2537 | -4/Extension | Rescued a captive Derelict 2542 | -4/Extension | Rescued a captive Derelict 2551 | -4/Extension | Lost 4 parts (1p3n) 2599 | -4/Extension | Destroyed B-86 Titan 2601 | -4/Extension | Allies destroyed B-86 Titan 2628 | -4/Extension | Lost 4 allies 2632 | -4/Extension | Lost 5 parts (1p3n1w) 2739 | -4/Extension | Lost 4 parts (1p1n1u1w) 2818 | -4/Extension | Rescued a captive Derelict 2819 | -4/Extension | Rescued a captive Derelict 2833 | -4/Extension | Rescued a captive Derelict 2917 | -4/Extension | Rescued a captive Derelict 2918 | -4/Extension | Rescued a captive Derelict 2982 | -4/Extension | Rescued a captive Derelict 2992 | -4/Extension | Rescued a captive Derelict 2993 | -4/Extension | Rescued a captive Derelict 3080 | -4/Extension | Lost 3 allies 3136 | -4/Extension | Lost 3 allies 3153 | -4/Extension | Lost 4 parts (2n2u) 3181 | -4/Extension | Rescued a captive Derelict 3203 | -4/Extension | Build established: Scavenger-Mutant 3203 | -4/Extension | Disrupted transfer network 3217 | -4/Extension | Discovered new exit (range 10) 3218 | -4/Extension | Discovered new exit (range 6) 3271 | -4/Extension | Entered Cetus 3271 | -4/Cetus | Accompanied by 3 allies 3289 | -4/Cetus | Spotted Cetus Guard 3289 | -4/Cetus | Spotted Cetus Guard 3289 | -4/Cetus | Spotted Cetus Guard 3290 | -4/Cetus | Spotted Cetus Guard 3295 | -4/Cetus | Allies destroyed Cetus Guard 3299 | -4/Cetus | Core integrity fell below 50% 3305 | -4/Cetus | Allies destroyed Cetus Guard 3305 | -4/Cetus | Allies destroyed Cetus Guard 3323 | -4/Cetus | Destroyed Cetus Guard 3334 | -4/Cetus | Lost 15 parts (4p7n2u2w) 3651 | -4/Cetus | Discovered new exit (range 16) 3684 | -4/Cetus | Spotted Cetus Guard 3686 | -4/Cetus | Spotted Cetus Guard 3686 | -4/Cetus | Spotted Cetus Guard 3686 | -4/Cetus | Spotted Cetus Guard 3721 | -4/Cetus | Entered Archives 3833 | -4/Archives | Unable to access archive contents 3839 | -4/Archives | Discovered new exit (range 14) 3899 | -4/Archives | Core integrity fell below 20% 3964 | -4/Archives | Unable to access archive contents 3980 | -4/Archives | Unable to access archive contents 3996 | -4/Archives | Unable to access archive contents 3998 | -4/Archives | Build established: Scavenger-Gunner 3999 | -4/Archives | Discovered new exit (range 15) 4045 | -4/Archives | Discovered new exit (range 16) 4069 | -4/Archives | Entered Hub_04(d) 4136 | -4/Hub_04(d) | Spotted B-86 Titan 4371 | -4/Hub_04(d) | Garrison activated, responded to threat 4475 | -4/Hub_04(d) | Lost 3 parts (2n1w) 4496 | -4/Hub_04(d) | Destroyed by H-71 Marshal with Heavy Mass Driver Last Messages --------------- 04475_ Knocked back. 04476_ Connecting with Terminal... >>Alert(Purge) Purged threat record, alert level lowered. 04480_ Slug penetrates Control Node. 04480_ Control Node disabled. 04486_ O-16 Technician: "IFF HANDSHAKE FAILED. SECURING TERMINAL." 04492_ Dropped Myomer Leg. 04493_ System corrupted: Component data lost. 04494_ Imp. Targeting Computer destroyed. 04494_ Lgt. Fission Core destroyed. 04495_ Slug penetrates Wall. 04495_ Acquired 1 matter. 04495_ Slug penetrates Wall. 04495_ Penetrated by Slug. 04495_ Slug penetrates Wall. 04496_ Tesla Rifle destroyed. 04496_ Imp. VTOL Module destroyed. 04496_ Critical hit (Blast). Map ----- +----------------------------------------------------+ | ???????????????????????????????????? | | ???????????????????????????????????? | | ???????????????????????????????????? | | ???????????????????????????????????? | | ???????????????????????????????????? | | ??????????????????????????#####????? | | ??????????????????# ????? #????? | | ??????????????????# ??? #????? | | ??????????????????# ?""" #????? | | ??????????????????# """"" #????? | | ??????????????????# """"""" #????? | | ??????????????????# """"" #????? | | ??????????????????# """ #????? | | ??????????????????#! " #????? | | ??????????????????# == #????? | | ??????????????????# #????? | | ??????????????????######//#####????? | | ?#######################H #????????? | | ?# %""" # #??####### | | ?# """ """ """ """ "T" h #?? # | | ?# h # #? ! # | | ?# """ """ """ """ " # #? # | | ?# # # # | | ?# """ """ """ """ """ # # # | | ?# #% + !# | | ?#######+#""" """##+#### @# # | | ???????# #"""T"""#? #??# ########?? | | ?####### ########## ### ]????????? | | ?+ o ! ????????? | | ?####### !#???????? | | ???????###+#" ###### #???????? | | ????????# # #????######???????? | | ????????#* # #?????????????????? | | ????????# # #?????????????????? | | ????????# # #?????????????????? | | ????????# ! # #?????????????????? | | ????????# # #?????????????????? | | ????????# # #?????????????????? | | ????????#+### #?????????????????? | | ??????### #######+??????????? | | ??????# ! ?????????? | | ??????+ ?????????? | | ??????# " ?????????? | | ??????## " #######???????????? | | ???????# " " ## ????????????? | | ???????# ##[ """" #????????? | | ???????# ## """" #????????? | | ???????# !! ## """" #????????? | | ???????# ! ## """" #????????? | | ???????# ## #????????? | +----------------------------------------------------+ Best States ------------- Heat Dissipation 62 Energy Generation 48 Energy Capacity 525 Matter Stores 300 Matter Capacity 300 Sight Range 16 Terrain Scan Density 10 Additional Mass Support 9 Armor Coverage 600 Evasion (%) 65 Targeting Accuracy 25 Core Analysis 9 Recoil Reduction 4 Offensive Hacking 22 Defensive Hacking 10 Item Schematics ----------------- Hacking Suite | -8/Materials | Hacked Lrn. Proton Cannon | -6/Zion | Archive Phase Cannon | -6/Zion | Archive Angular Momentum Engine | -6/Zion | Archive Lrn. Tractor Beam | -6/Zion | Archive Tesla Rifle | -6/Zion | Archive Lgt. Fission Core | -6/Zion | Archive Dispersion Rifle | -6/Zion | Archive Railgun | -6/Zion | Archive Adv. Heat Sink | -6/Zion | Archive Imp. Recalibrator | -6/Zion | Archive Matter Compressor | -6/Zion | Archive Adv. Drone Bay | -6/Zion | Archive Adv. Signal Interpreter | -6/Zion | Archive Field Propulsion Drive | -6/Zion | Archive Force Field | -6/Zion | Archive Cld. VTOL Module | -5/Factory | Scanalyzed Robot Schematics ------------------ A-02 Transporter | -6/Zion | Archive L-41 Fighter | -6/Zion | Archive R-10 Processor | -6/Zion | Archive Fabricated ------------ Hacking Suite | x1 | -7/Factory Hacking Suite | x1 | -7/Factory Alien Tech Used ----------------- None Achievements -------------- Cya! Explorer Quick And Dirty Challenges ------------ None Game ------ Seed MultitargetingLightpackMount Manual? 0 Play Time 03:48:15 Cumulative 57.5 hours Start 2024.11.25 @ 17:19:19 End 2024.11.29 @ 08:39:41 Sessions 7 Manual Loads 0 Difficulty Rogue Special Mode None Game No. 40 Rogue 40 Adventurer 0 Explorer 0 Win Type - Total 0 Types 0/0/0/0/0/0/0/0/0 Lore% 16 Gallery% 35 Achievement% 29 Wizard Run 0 Options --------- Layout 1 ASCII 0 Keyboard 0 Movement Mouse Keybinds 0 Fullscreen 1 Font 24/Smallcaps Map View 50x35 Zoom Use 0% Tactical HUD 1 Map Filters NONE Filters NONE Steam 1 RUN: 69504f93-a582-4238-875a-f1840a1c8e15